[Event "*** Titled Tuesday Blitz"]
[Site "Chess.com"]
[Date "2020.11.24"]
[Round "2"]
[White "SlavenPastar"]
[Black "NikolaGry"]
[Result "0-1"]
[WhiteElo "2475"]
[BlackElo "2721"]
[TimeControl "180+1"]
[EndTime "10:33:10 PST"]
[Termination "NikolaGry won on time"]

1. d4 {[%clk 0:03:00.9]} 1... d5 {[%clk 0:02:59.4]} 2. Nf3 {[%clk 0:03:00.4]}
2... Nc6 {[%clk 0:02:59.5]} 3. g3 {[%clk 0:02:58.3]} 3... Bg4 {[%clk 0:02:59.2]}
4. Bg2 {[%clk 0:02:58.2]} 4... Qd7 {[%clk 0:02:59.6]} 5. h3 {[%clk 0:02:49.4]}
5... Bf5 {[%clk 0:02:58.9]} 6. Nc3 {[%clk 0:02:42.3]} 6... e6 {[%clk 0:02:52.3]}
7. Bf4 {[%clk 0:02:29.6]} 7... Bd6 {[%clk 0:02:48.7]} 8. Bxd6 {[%clk 0:02:23.6]}
8... cxd6 {[%clk 0:02:47.4]} 9. Nh4 {[%clk 0:02:18.1]} 9... Nge7 {[%clk
0:02:46.9]} 10. Qd2 {[%clk 0:02:13.1]} 10... O-O {[%clk 0:02:44.8]} 11. O-O
{[%clk 0:02:09]} 11... h6 {[%clk 0:02:37.8]} 12. Nxf5 {[%clk 0:02:08.2]} 12...
Nxf5 {[%clk 0:02:37.5]} 13. e3 {[%clk 0:02:02.9]} 13... Rac8 {[%clk 0:02:36.7]}
14. h4 {[%clk 0:02:00.4]} 14... Na5 {[%clk 0:02:30.1]} 15. b3 {[%clk 0:01:38.3]}
15... Qc6 {[%clk 0:02:19]} 16. Nxd5 {[%clk 0:01:26.5]} 16... Qa6 {[%clk
0:02:04.5]} 17. Nb4 {[%clk 0:01:06.1]} 17... Qb6 {[%clk 0:02:02.4]} 18. Nd3
{[%clk 0:01:04.1]} 18... d5 {[%clk 0:01:55.3]} 19. h5 {[%clk 0:01:00.2]} 19...
Nc6 {[%clk 0:01:43.7]} 20. Rac1 {[%clk 0:00:42.5]} 20... Nd6 {[%clk 0:01:27.5]}
21. Qe2 {[%clk 0:00:39.1]} 21... Nb4 {[%clk 0:01:23]} 22. a3 {[%clk 0:00:33.7]}
22... Na2 {[%clk 0:01:17.3]} 23. Ra1 {[%clk 0:00:31.4]} 23... Nc3 {[%clk
0:01:17.3]} 24. Qg4 {[%clk 0:00:28]} 24... Nce4 {[%clk 0:01:13.9]} 25. Rac1
{[%clk 0:00:20.5]} 25... Rc3 {[%clk 0:01:08.9]} 26. Ne5 {[%clk 0:00:16.1]} 26...
Rfc8 {[%clk 0:01:00.2]} 27. Rfe1 {[%clk 0:00:07.8]} 27... a5 {[%clk 0:00:53.1]}
28. Bxe4 {[%clk 0:00:05.2]} 28... Nxe4 {[%clk 0:00:48.1]} 29. Qf4 {[%clk
0:00:04.3]} 29... f6 {[%clk 0:00:39.6]} 30. Ng6 {[%clk 0:00:03.4]} 30... Kh7
{[%clk 0:00:30.6]} 31. f3 {[%clk 0:00:03.2]} 31... Ng5 {[%clk 0:00:27.4]} 32.
Qg4 {[%clk 0:00:03.1]} 32... f5 {[%clk 0:00:26.3]} 33. Qf4 {[%clk 0:00:01.8]}
33... Nh3+ {[%clk 0:00:26.2]} 0-1

[Event "*** Titled Tuesday Blitz"]
[Site "Chess.com"]
[Date "2020.11.24"]
[Round "2"]
[White "Gabrielian_Artur"]
[Black "MateusViageiro"]
[Result "1-0"]
[WhiteElo "2761"]
[BlackElo "2345"]
[TimeControl "180+1"]
[EndTime "10:33:10 PST"]
[Termination "Gabrielian_Artur won by resignation"]

1. d4 {[%clk 0:03:00.9]} 1... Nf6 {[%clk 0:02:59.3]} 2. c4 {[%clk 0:03:00.6]}
2... g6 {[%clk 0:02:55.8]} 3. Nc3 {[%clk 0:03:00.3]} 3... Bg7 {[%clk 0:02:55.6]}
4. e4 {[%clk 0:03:00.3]} 4... d6 {[%clk 0:02:50.2]} 5. Nf3 {[%clk 0:03:00.1]}
5... O-O {[%clk 0:02:48.4]} 6. Be2 {[%clk 0:02:59.9]} 6... e5 {[%clk 0:02:46.9]}
7. O-O {[%clk 0:02:59.1]} 7... exd4 {[%clk 0:02:45.8]} 8. Nxd4 {[%clk
0:02:58.7]} 8... Re8 {[%clk 0:02:43.9]} 9. f3 {[%clk 0:02:58.5]} 9... Nc6 {[%clk
0:02:42.2]} 10. Be3 {[%clk 0:02:53.9]} 10... Bd7 {[%clk 0:02:35.5]} 11. Qd2
{[%clk 0:02:53.1]} 11... a6 {[%clk 0:02:30.6]} 12. Kh1 {[%clk 0:02:48.7]} 12...
Nh5 {[%clk 0:02:29.1]} 13. g4 {[%clk 0:02:39]} 13... Nf6 {[%clk 0:02:25.4]} 14.
Rad1 {[%clk 0:02:36.7]} 14... Ne5 {[%clk 0:02:21]} 15. b3 {[%clk 0:02:26]} 15...
Qc8 {[%clk 0:02:08.7]} 16. Bh6 {[%clk 0:02:19.6]} 16... Bh8 {[%clk 0:01:30.1]}
17. Rg1 {[%clk 0:02:16]} 17... c5 {[%clk 0:01:29.2]} 18. Nf5 {[%clk 0:02:14.9]}
18... Bxf5 {[%clk 0:01:26.2]} 19. gxf5 {[%clk 0:02:13.3]} 19... Nc6 {[%clk
0:01:22.4]} 20. Qxd6 {[%clk 0:02:02.3]} 20... Nd4 {[%clk 0:01:19.7]} 21. Qg3
{[%clk 0:01:36.8]} 21... Qb8 {[%clk 0:01:07.9]} 22. Qh4 {[%clk 0:01:27.7]} 22...
b5 {[%clk 0:00:57.8]} 23. Rg2 {[%clk 0:01:19.1]} 23... b4 {[%clk 0:00:56]} 24.
Nd5 {[%clk 0:01:18.5]} 24... Nxd5 {[%clk 0:00:55.6]} 25. cxd5 {[%clk 0:01:19.4]}
25... Qe5 {[%clk 0:00:45]} 26. Rf1 {[%clk 0:00:55.1]} 26... Bf6 {[%clk
0:00:42.9]} 27. Qh3 {[%clk 0:00:53.9]} 27... Kh8 {[%clk 0:00:36.5]} 28. Bc4
{[%clk 0:00:53.1]} 28... gxf5 {[%clk 0:00:32]} 29. Rfg1 {[%clk 0:00:35.6]} 29...
fxe4 {[%clk 0:00:25.4]} 30. fxe4 {[%clk 0:00:35.4]} 30... Qxe4 {[%clk
0:00:22.2]} 31. Bd3 {[%clk 0:00:35.2]} 31... Qh4 {[%clk 0:00:08.2]} 32. Bg7+
{[%clk 0:00:34.5]} 32... Bxg7 {[%clk 0:00:05.7]} 33. Qxh4 {[%clk 0:00:34.3]}
33... f5 {[%clk 0:00:04.2]} 1-0

[Event "*** Titled Tuesday Blitz"]
[Site "Chess.com"]
[Date "2020.11.24"]
[Round "2"]
[White "Xeniya2005"]
[Black "NotFischer"]
[Result "1-0"]
[WhiteElo "2418"]
[BlackElo "2138"]
[TimeControl "180+1"]
[EndTime "10:33:10 PST"]
[Termination "Xeniya2005 won by resignation"]

1. e4 {[%clk 0:02:38.9]} 1... d5 {[%clk 0:02:58.5]} 2. exd5 {[%clk 0:02:37.4]}
2... Nf6 {[%clk 0:02:58.6]} 3. d4 {[%clk 0:02:36.1]} 3... Bg4 {[%clk 0:02:58.3]}
4. Nf3 {[%clk 0:02:33]} 4... Qxd5 {[%clk 0:02:57.7]} 5. Be2 {[%clk 0:02:33]}
5... Nc6 {[%clk 0:02:57.5]} 6. Be3 {[%clk 0:02:32.8]} 6... e5 {[%clk 0:02:41]}
7. c4 {[%clk 0:02:21.2]} 7... Bb4+ {[%clk 0:02:39.7]} 8. Nbd2 {[%clk 0:02:07.7]}
8... Qd7 {[%clk 0:02:22.9]} 9. d5 {[%clk 0:02:07]} 9... Bxf3 {[%clk 0:02:23.1]}
10. Bxf3 {[%clk 0:02:03.7]} 10... Nd4 {[%clk 0:02:23.3]} 11. Bxd4 {[%clk
0:02:01.6]} 11... exd4 {[%clk 0:02:24.2]} 12. O-O {[%clk 0:01:58.9]} 12... O-O
{[%clk 0:02:24.3]} 13. a3 {[%clk 0:01:58.6]} 13... Bd6 {[%clk 0:02:22.8]} 14.
Nb3 {[%clk 0:01:54.4]} 14... Be5 {[%clk 0:02:04.4]} 15. Nxd4 {[%clk 0:01:47.2]}
15... c5 {[%clk 0:02:04.5]} 16. Nb3 {[%clk 0:01:36.8]} 16... b6 {[%clk
0:01:56.6]} 17. Qc2 {[%clk 0:01:36.1]} 17... h5 {[%clk 0:01:25]} 18. Nd2 {[%clk
0:01:31.4]} 18... Ng4 {[%clk 0:01:11.1]} 19. h3 {[%clk 0:01:27.5]} 19... Nf6
{[%clk 0:00:58.8]} 20. Rfe1 {[%clk 0:01:13.3]} 20... Qd6 {[%clk 0:00:58.7]} 21.
Rab1 {[%clk 0:01:06.4]} 21... a5 {[%clk 0:00:56.9]} 22. b3 {[%clk 0:01:01.9]}
22... Rfe8 {[%clk 0:00:53.9]} 23. Re2 {[%clk 0:00:54]} 23... Bd4 {[%clk
0:00:53.3]} 24. Rbe1 {[%clk 0:00:48.9]} 24... Qg3 {[%clk 0:00:39.4]} 25. Be4
{[%clk 0:00:32.1]} 25... Qf4 {[%clk 0:00:30.4]} 26. Nf3 {[%clk 0:00:20.3]} 26...
Nxe4 {[%clk 0:00:13.7]} 27. Rxe4 {[%clk 0:00:19.9]} 27... Rxe4 {[%clk
0:00:13.7]} 28. Rxe4 {[%clk 0:00:20.2]} 28... Qf6 {[%clk 0:00:14.6]} 29. Nxd4
{[%clk 0:00:19.8]} 29... cxd4 {[%clk 0:00:14.7]} 30. Qd3 {[%clk 0:00:19.9]} 1-0

[Event "*** Titled Tuesday Blitz"]
[Site "Chess.com"]
[Date "2020.11.24"]
[Round "2"]
[White "EvgenyRomanov"]
[Black "penguingm1"]
[Result "1-0"]
[WhiteElo "2601"]
[BlackElo "2975"]
[TimeControl "180+1"]
[EndTime "10:33:11 PST"]
[Termination "EvgenyRomanov won by resignation"]

1. d4 {[%clk 0:02:59.2]} 1... d5 {[%clk 0:02:56.1]} 2. Nf3 {[%clk 0:02:58.3]}
2... Nf6 {[%clk 0:02:53.5]} 3. Bg5 {[%clk 0:02:58]} 3... e6 {[%clk 0:02:52.1]}
4. Nbd2 {[%clk 0:02:56.2]} 4... Be7 {[%clk 0:02:51.2]} 5. e3 {[%clk 0:02:56.4]}
5... O-O {[%clk 0:02:51.4]} 6. Bd3 {[%clk 0:02:55.9]} 6... b6 {[%clk 0:02:51.8]}
7. Ne5 {[%clk 0:02:54.7]} 7... Bb7 {[%clk 0:02:51.8]} 8. Qf3 {[%clk 0:02:52.1]}
8... Nbd7 {[%clk 0:02:49.4]} 9. Qh3 {[%clk 0:02:46.3]} 9... Nxe5 {[%clk
0:00:55.6]} 10. dxe5 {[%clk 0:02:40.1]} 10... Ne4 {[%clk 0:00:55.7]} 11. Bxe7
{[%clk 0:02:31.8]} 11... Qxe7 {[%clk 0:00:56.6]} 12. f3 {[%clk 0:02:18.9]} 12...
Ng5 {[%clk 0:00:48.6]} 13. Qg3 {[%clk 0:02:14.8]} 13... f5 {[%clk 0:00:33.4]}
14. exf6 {[%clk 0:01:59.3]} 14... Qxf6 {[%clk 0:00:33.6]} 15. Qxc7 {[%clk
0:01:50]} 15... Qxb2 {[%clk 0:00:25.9]} 16. Rb1 {[%clk 0:01:44.3]} 16... Qxa2
{[%clk 0:00:07.9]} 17. Qxb7 {[%clk 0:01:39.6]} 17... Qa5 {[%clk 0:00:08]} 18.
Qc6 {[%clk 0:01:25.6]} 18... Rac8 {[%clk 0:00:07.1]} 19. Qb5 {[%clk 0:01:24.4]}
19... Qc3 {[%clk 0:00:06.7]} 20. Qb4 {[%clk 0:01:18.9]} 20... Qe5 {[%clk
0:00:05.3]} 21. Qd4 {[%clk 0:01:14.4]} 21... Qd6 {[%clk 0:00:05.7]} 22. f4
{[%clk 0:01:08.5]} 22... Nf7 {[%clk 0:00:03]} 23. O-O {[%clk 0:01:09]} 23... Nd8
{[%clk 0:00:03]} 24. Nc4 {[%clk 0:00:56]} 24... Qe7 {[%clk 0:00:03.1]} 25. Ne5
{[%clk 0:00:55.1]} 25... Nb7 {[%clk 0:00:03.7]} 26. c4 {[%clk 0:00:49]} 26...
Rfd8 {[%clk 0:00:03.1]} 27. cxd5 {[%clk 0:00:47.1]} 27... Nc5 {[%clk 0:00:03]}
28. Bc4 {[%clk 0:00:45.6]} 28... Rd6 {[%clk 0:00:02.8]} 29. e4 {[%clk
0:00:42.9]} 29... g6 {[%clk 0:00:02.2]} 30. Qe3 {[%clk 0:00:42.1]} 30... Rcd8
{[%clk 0:00:01.8]} 31. dxe6 {[%clk 0:00:39.6]} 31... Rd4 {[%clk 0:00:02.1]} 32.
Bd5 {[%clk 0:00:38.6]} 32... Ra4 {[%clk 0:00:02.4]} 33. Ra1 {[%clk 0:00:33]}
33... Rb4 {[%clk 0:00:02.4]} 34. Qf3 {[%clk 0:00:28.1]} 34... a5 {[%clk
0:00:02.4]} 35. Nc6 {[%clk 0:00:27.3]} 35... Qf6 {[%clk 0:00:02.7]} 36. e7+
{[%clk 0:00:25.1]} 1-0

[Event "*** Titled Tuesday Blitz"]
[Site "Chess.com"]
[Date "2020.11.24"]
[Round "2"]
[White "FMJoseHerrera"]
[Black "PattyCastillo"]
[Result "1-0"]
[WhiteElo "2591"]
[BlackElo "2052"]
[TimeControl "180+1"]
[EndTime "10:33:11 PST"]
[Termination "FMJoseHerrera won by resignation"]

1. Nf3 {[%clk 0:03:00.8]} 1... d5 {[%clk 0:02:58.9]} 2. g3 {[%clk 0:03:00.1]}
2... Nf6 {[%clk 0:02:58.2]} 3. Bg2 {[%clk 0:02:58]} 3... c6 {[%clk 0:02:58.2]}
4. d3 {[%clk 0:02:56.7]} 4... e6 {[%clk 0:02:56.1]} 5. c3 {[%clk 0:02:53.7]}
5... Nbd7 {[%clk 0:02:55.5]} 6. Qb3 {[%clk 0:02:52]} 6... Bd6 {[%clk 0:02:53.5]}
7. O-O {[%clk 0:02:49.6]} 7... O-O {[%clk 0:02:53]} 8. a3 {[%clk 0:02:46.5]}
8... e5 {[%clk 0:02:47.9]} 9. Qc2 {[%clk 0:02:41.8]} 9... Qe7 {[%clk 0:02:42.8]}
10. b4 {[%clk 0:02:38.8]} 10... b6 {[%clk 0:02:39.5]} 11. Bb2 {[%clk 0:02:36.3]}
11... Bb7 {[%clk 0:02:39.3]} 12. c4 {[%clk 0:02:33]} 12... Rac8 {[%clk
0:02:38.3]} 13. e3 {[%clk 0:02:30.5]} 13... Rfe8 {[%clk 0:02:37.9]} 14. Nbd2
{[%clk 0:02:29.6]} 14... c5 {[%clk 0:02:32.2]} 15. b5 {[%clk 0:02:14.9]} 15...
d4 {[%clk 0:02:12.3]} 16. exd4 {[%clk 0:02:14]} 16... exd4 {[%clk 0:02:10.3]}
17. Rfe1 {[%clk 0:02:06.3]} 17... Qd8 {[%clk 0:02:09.3]} 18. a4 {[%clk
0:02:05.4]} 18... Qc7 {[%clk 0:02:08.1]} 19. a5 {[%clk 0:02:04.2]} 19... Ng4
{[%clk 0:01:58.5]} 20. axb6 {[%clk 0:02:01.5]} 20... axb6 {[%clk 0:01:58.5]} 21.
Ra7 {[%clk 0:01:54.2]} 21... Qb8 {[%clk 0:01:53.8]} 22. Rxe8+ {[%clk 0:01:04.4]}
22... Rxe8 {[%clk 0:01:52.9]} 23. Rxb7 {[%clk 0:01:04.8]} 23... Qxb7 {[%clk
0:01:52.1]} 24. Ne5 {[%clk 0:01:04.9]} 24... Qc8 {[%clk 0:01:35.4]} 25. Nxg4
{[%clk 0:01:00.3]} 25... Re1+ {[%clk 0:01:35]} 26. Nf1 {[%clk 0:00:56.7]} 26...
Ne5 {[%clk 0:01:34.2]} 27. Nxe5 {[%clk 0:00:52.8]} 27... Bxe5 {[%clk 0:01:34.4]}
28. Bc1 {[%clk 0:00:31.2]} 28... Bf6 {[%clk 0:01:28.1]} 29. Bd2 {[%clk
0:00:21.6]} 29... Ra1 {[%clk 0:01:25.6]} 30. Bf4 {[%clk 0:00:19.3]} 30... h5
{[%clk 0:01:24.6]} 31. Qe2 {[%clk 0:00:19]} 31... g6 {[%clk 0:01:20.4]} 32. Qf3
{[%clk 0:00:14.9]} 32... Bg7 {[%clk 0:01:19.3]} 33. Qc6 {[%clk 0:00:14.2]} 33...
Qf5 {[%clk 0:01:15.5]} 34. Qe4 {[%clk 0:00:10]} 34... Qg4 {[%clk 0:01:11.4]} 35.
h3 {[%clk 0:00:09.3]} 35... Qd1 {[%clk 0:01:10.9]} 36. Kh2 {[%clk 0:00:07.6]}
36... h4 {[%clk 0:01:00.8]} 37. gxh4 {[%clk 0:00:06.8]} 37... Ra3 {[%clk
0:00:56.1]} 38. h5 {[%clk 0:00:06.7]} 38... gxh5 {[%clk 0:00:54.6]} 39. Qe8+
{[%clk 0:00:06.5]} 39... Kh7 {[%clk 0:00:54.3]} 40. Qxf7 {[%clk 0:00:06.9]}
40... Rxd3 {[%clk 0:00:48.6]} 41. Be4+ {[%clk 0:00:06.7]} 41... Kh8 {[%clk
0:00:46]} 42. Qe8+ {[%clk 0:00:06.9]} 1-0

[Event "*** Titled Tuesday Blitz"]
[Site "Chess.com"]
[Date "2020.11.24"]
[Round "2"]
[White "Meri-Arabidze"]
[Black "SameerMujumdar"]
[Result "1-0"]
[WhiteElo "2619"]
[BlackElo "2301"]
[TimeControl "180+1"]
[EndTime "10:33:12 PST"]
[Termination "Meri-Arabidze won by resignation"]

1. Nf3 {[%clk 0:03:00.9]} 1... Nf6 {[%clk 0:02:58.2]} 2. b3 {[%clk 0:03:01.3]}
2... d6 {[%clk 0:02:56.6]} 3. Bb2 {[%clk 0:03:02.2]} 3... Nbd7 {[%clk
0:02:57.1]} 4. c4 {[%clk 0:03:02.4]} 4... g6 {[%clk 0:02:57.3]} 5. g3 {[%clk
0:03:02.8]} 5... Bg7 {[%clk 0:02:57.7]} 6. Bg2 {[%clk 0:03:03.2]} 6... O-O
{[%clk 0:02:58.2]} 7. O-O {[%clk 0:03:03.3]} 7... e5 {[%clk 0:02:58.7]} 8. Nc3
{[%clk 0:03:03.4]} 8... Nc5 {[%clk 0:02:50.2]} 9. d3 {[%clk 0:03:02.8]} 9... Bg4
{[%clk 0:02:49.4]} 10. h3 {[%clk 0:03:00.2]} 10... Be6 {[%clk 0:02:47.8]} 11.
Ng5 {[%clk 0:03:00.1]} 11... Bd7 {[%clk 0:02:47.4]} 12. b4 {[%clk 0:02:59.8]}
12... Ne6 {[%clk 0:02:46.6]} 13. Nxe6 {[%clk 0:02:57.9]} 13... Bxe6 {[%clk
0:02:47.5]} 14. b5 {[%clk 0:02:55.1]} 14... c6 {[%clk 0:02:45.7]} 15. bxc6
{[%clk 0:02:54.2]} 15... bxc6 {[%clk 0:02:45.6]} 16. Qa4 {[%clk 0:02:44.5]}
16... d5 {[%clk 0:02:39.9]} 17. Ba3 {[%clk 0:02:37.7]} 17... Re8 {[%clk
0:02:35.2]} 18. Rfd1 {[%clk 0:02:23.7]} 18... Rc8 {[%clk 0:02:24.8]} 19. Rac1
{[%clk 0:02:18.6]} 19... d4 {[%clk 0:02:21]} 20. Nb1 {[%clk 0:02:12.4]} 20...
Qd7 {[%clk 0:02:14.9]} 21. Kh2 {[%clk 0:02:11.1]} 21... h5 {[%clk 0:02:10.4]}
22. Nd2 {[%clk 0:02:04.4]} 22... h4 {[%clk 0:02:00.6]} 23. g4 {[%clk 0:02:03.7]}
23... Bh6 {[%clk 0:01:58.3]} 24. Rb1 {[%clk 0:01:56.3]} 24... Bf4+ {[%clk
0:01:45.7]} 25. Kg1 {[%clk 0:01:55.4]} 25... Nxg4 {[%clk 0:01:40.8]} 26. hxg4
{[%clk 0:01:54.7]} 26... Bxg4 {[%clk 0:01:41.1]} 27. Ne4 {[%clk 0:01:50.2]}
27... Kg7 {[%clk 0:01:37]} 28. Nd6 {[%clk 0:01:46.5]} 28... Rh8 {[%clk
0:01:24.1]} 29. Rb7 {[%clk 0:01:40.9]} 29... Rc7 {[%clk 0:01:21.5]} 30. Rdb1
{[%clk 0:01:39.2]} 30... h3 {[%clk 0:01:18.3]} 31. Rxc7 {[%clk 0:01:36.7]} 31...
Qxc7 {[%clk 0:00:59.7]} 32. Rb7 {[%clk 0:01:36]} 32... Rb8 {[%clk 0:00:49.5]}
33. Qxc6 {[%clk 0:00:55.1]} 33... Rxb7 {[%clk 0:00:23.7]} 34. Nxb7 {[%clk
0:00:48.1]} 34... Qb8 {[%clk 0:00:15.5]} 35. Bd5 {[%clk 0:00:38]} 35... h2+
{[%clk 0:00:14.4]} 36. Kh1 {[%clk 0:00:35.5]} 36... Qh8 {[%clk 0:00:09.7]} 37.
Be7 {[%clk 0:00:33.1]} 37... Qh3 {[%clk 0:00:08.6]} 38. Qf6+ {[%clk 0:00:30.9]}
1-0

[Event "*** Titled Tuesday Blitz"]
[Site "Chess.com"]
[Date "2020.11.24"]
[Round "2"]
[White "OK97"]
[Black "Grandmaster2B"]
[Result "1-0"]
[WhiteElo "2769"]
[BlackElo "2500"]
[TimeControl "180+1"]
[EndTime "10:33:14 PST"]
[Termination "OK97 won on time"]

1. d4 {[%clk 0:03:00.9]} 1... Nf6 {[%clk 0:02:59.9]} 2. Bg5 {[%clk 0:03:00.4]}
2... d5 {[%clk 0:02:54]} 3. Bxf6 {[%clk 0:02:59.1]} 3... exf6 {[%clk 0:02:54.9]}
4. e3 {[%clk 0:02:58.7]} 4... Bf5 {[%clk 0:02:54.4]} 5. c4 {[%clk 0:02:58.4]}
5... c6 {[%clk 0:02:48]} 6. Nc3 {[%clk 0:02:53.4]} 6... Be7 {[%clk 0:02:45.7]}
7. cxd5 {[%clk 0:02:53.2]} 7... cxd5 {[%clk 0:02:46.6]} 8. Qb3 {[%clk 0:02:53]}
8... Be6 {[%clk 0:02:29.3]} 9. Qxb7 {[%clk 0:02:50]} 9... Nd7 {[%clk 0:02:29.3]}
10. Qb3 {[%clk 0:02:35.5]} 10... Rb8 {[%clk 0:02:29.2]} 11. Qc2 {[%clk
0:02:35.9]} 11... O-O {[%clk 0:02:29.6]} 12. Bd3 {[%clk 0:02:35.6]} 12... g6
{[%clk 0:02:28.1]} 13. Nge2 {[%clk 0:02:35.2]} 13... Qb6 {[%clk 0:02:24.6]} 14.
Rb1 {[%clk 0:02:33.1]} 14... Rfc8 {[%clk 0:02:24.7]} 15. O-O {[%clk 0:02:33.1]}
15... Qa5 {[%clk 0:02:15.7]} 16. Rfc1 {[%clk 0:02:25]} 16... Nb6 {[%clk
0:02:14.3]} 17. Qd1 {[%clk 0:02:19.1]} 17... Nc4 {[%clk 0:02:08.2]} 18. Bxc4
{[%clk 0:02:19.2]} 18... Rxc4 {[%clk 0:02:08.1]} 19. Nf4 {[%clk 0:02:11.1]}
19... Rcb4 {[%clk 0:01:47.1]} 20. b3 {[%clk 0:01:48.1]} 20... R4b7 {[%clk
0:01:29.2]} 21. Na4 {[%clk 0:01:41.9]} 21... Bf5 {[%clk 0:01:20.9]} 22. Ra1
{[%clk 0:01:37.5]} 22... Ba3 {[%clk 0:01:10.2]} 23. Nc5 {[%clk 0:01:25.2]} 23...
Rb5 {[%clk 0:00:55.1]} 24. Nxd5 {[%clk 0:01:25]} 24... Bxc1 {[%clk 0:00:49.6]}
25. Rxc1 {[%clk 0:01:16.6]} 25... Qd8 {[%clk 0:00:27.4]} 26. Nc3 {[%clk
0:01:04.9]} 26... R5b6 {[%clk 0:00:24.6]} 27. h3 {[%clk 0:00:58.9]} 27... Rc8
{[%clk 0:00:20.7]} 28. N3a4 {[%clk 0:00:52.4]} 28... Rd6 {[%clk 0:00:19.9]} 29.
b4 {[%clk 0:00:49.7]} 29... Qe8 {[%clk 0:00:18]} 30. Nc3 {[%clk 0:00:47.9]}
30... Rb8 {[%clk 0:00:14.6]} 31. a3 {[%clk 0:00:47.2]} 31... Be6 {[%clk
0:00:09.4]} 32. Qf3 {[%clk 0:00:44.6]} 32... Kg7 {[%clk 0:00:07.4]} 33. N3e4
{[%clk 0:00:44.4]} 33... Rdd8 {[%clk 0:00:01.9]} 34. Qxf6+ {[%clk 0:00:44]}
34... Kg8 {[%clk 0:00:01.9]} 35. Qf4 {[%clk 0:00:40]} 35... Qc6 {[%clk
0:00:01.9]} 36. Qe5 {[%clk 0:00:33.4]} 36... Rd5 {[%clk 0:00:01.7]} 37. Nf6+
{[%clk 0:00:33.5]} 37... Kf8 {[%clk 0:00:01.8]} 38. Nxd5 {[%clk 0:00:33.4]}
38... Qxd5 {[%clk 0:00:02]} 39. Qxb8+ {[%clk 0:00:33.5]} 1-0

[Event "*** Titled Tuesday Blitz"]
[Site "Chess.com"]
[Date "2020.11.24"]
[Round "2"]
[White "Mazetovic"]
[Black "Das_Virus_2020"]
[Result "1-0"]
[WhiteElo "2765"]
[BlackElo "2497"]
[TimeControl "180+1"]
[EndTime "10:33:14 PST"]
[Termination "Mazetovic won on time"]

1. e4 {[%clk 0:03:00.9]} 1... e6 {[%clk 0:02:59.7]} 2. Nf3 {[%clk 0:02:58.9]}
2... d5 {[%clk 0:02:59.3]} 3. e5 {[%clk 0:02:59.4]} 3... Bd7 {[%clk 0:02:59]} 4.
d4 {[%clk 0:02:56]} 4... c5 {[%clk 0:02:58.8]} 5. c3 {[%clk 0:02:55.6]} 5... Nc6
{[%clk 0:02:59.3]} 6. Be2 {[%clk 0:02:55.9]} 6... Qb6 {[%clk 0:02:55.1]} 7. O-O
{[%clk 0:02:54.9]} 7... cxd4 {[%clk 0:02:54.1]} 8. cxd4 {[%clk 0:02:54.7]} 8...
Nh6 {[%clk 0:02:54.5]} 9. Bxh6 {[%clk 0:02:53.3]} 9... gxh6 {[%clk 0:02:54.1]}
10. Nc3 {[%clk 0:02:44.1]} 10... a6 {[%clk 0:02:48.6]} 11. Qd2 {[%clk
0:02:41.1]} 11... Bg7 {[%clk 0:02:47.7]} 12. Na4 {[%clk 0:02:27.5]} 12... Qb4
{[%clk 0:02:38.2]} 13. Qxb4 {[%clk 0:02:13]} 13... Nxb4 {[%clk 0:02:39.1]} 14.
Nb6 {[%clk 0:02:09.7]} 14... Rd8 {[%clk 0:02:38.2]} 15. a3 {[%clk 0:02:08.4]}
15... Nc6 {[%clk 0:02:33.5]} 16. Rfc1 {[%clk 0:02:06.1]} 16... Ke7 {[%clk
0:02:24.2]} 17. Rc3 {[%clk 0:02:04.8]} 17... f6 {[%clk 0:01:57.8]} 18. exf6+
{[%clk 0:02:04.4]} 18... Bxf6 {[%clk 0:01:57.1]} 19. Rd1 {[%clk 0:02:04.3]}
19... Be8 {[%clk 0:01:47.9]} 20. Re3 {[%clk 0:02:01.3]} 20... Kd6 {[%clk
0:01:33.2]} 21. Na4 {[%clk 0:01:59.4]} 21... Bd7 {[%clk 0:01:19.4]} 22. Nc5
{[%clk 0:01:57.7]} 22... Bc8 {[%clk 0:01:19.5]} 23. b4 {[%clk 0:01:55.5]} 23...
Rhe8 {[%clk 0:01:12.6]} 24. g3 {[%clk 0:01:46.5]} 24... Re7 {[%clk 0:01:12.1]}
25. Bf1 {[%clk 0:01:42.4]} 25... Rf8 {[%clk 0:01:10.2]} 26. Bh3 {[%clk
0:01:41.2]} 26... Rfe8 {[%clk 0:00:56]} 27. Kg2 {[%clk 0:01:27.8]} 27... b6
{[%clk 0:00:53.2]} 28. Nb3 {[%clk 0:01:22.7]} 28... Rc7 {[%clk 0:00:47.1]} 29.
Rde1 {[%clk 0:01:22.4]} 29... Ree7 {[%clk 0:00:29.9]} 30. Ne5 {[%clk 0:01:22]}
30... Bxe5 {[%clk 0:00:25.5]} 31. dxe5+ {[%clk 0:01:21.5]} 31... Kd7 {[%clk
0:00:25.5]} 32. Rd1 {[%clk 0:01:18.7]} 32... Ke8 {[%clk 0:00:24.3]} 33. f4
{[%clk 0:01:17.6]} 33... Bb7 {[%clk 0:00:22.4]} 34. Nd4 {[%clk 0:01:16.5]} 34...
Nxd4 {[%clk 0:00:22.1]} 35. Rxd4 {[%clk 0:01:16.7]} 35... Rc2+ {[%clk 0:00:22]}
36. Kg1 {[%clk 0:01:17]} 36... Kf7 {[%clk 0:00:18]} 37. f5 {[%clk 0:01:12.3]}
37... Rec7 {[%clk 0:00:16.9]} 38. fxe6+ {[%clk 0:01:11.2]} 38... Ke7 {[%clk
0:00:17.4]} 39. Rf3 {[%clk 0:01:09]} 39... Rc1+ {[%clk 0:00:17.1]} 40. Kg2
{[%clk 0:01:00.1]} 40... R1c2+ {[%clk 0:00:13.1]} 41. Rf2 {[%clk 0:01:00.3]}
41... Rxf2+ {[%clk 0:00:12.2]} 42. Kxf2 {[%clk 0:01:01.2]} 42... Rc2+ {[%clk
0:00:11.8]} 43. Ke3 {[%clk 0:01:00.8]} 43... Rc3+ {[%clk 0:00:11.2]} 44. Kd2
{[%clk 0:00:57.3]} 44... Rxa3 {[%clk 0:00:06.1]} 45. Rh4 {[%clk 0:00:57.1]}
45... Ra2+ {[%clk 0:00:03.2]} 46. Kc3 {[%clk 0:00:56.4]} 46... d4+ {[%clk
0:00:02.8]} 47. Kxd4 {[%clk 0:00:56.2]} 1-0